[Event "Titled Tuesday Blitz May 17 Late 2022"]
[White "Martinez Alcantara, Jose Eduardo"]
[Black "Suleymanli, Aydin"]
[WhiteFideId "3805662"]
[BlackFideId "13413937"]
[WhiteElo "2690"]
[BlackElo "2481"]
[Result "1-0"]
[Round "04"]
[TimeControl "180+1"]
[Date "2022.05.17"]
[WhiteClock "0:00:16"]
[BlackClock "0:00:02"]

1. e4 {[%clk 0:03:00]}  c6 {[%clk 0:02:52]} 2. d4 {[%clk 0:03:00]}  d5 {[%clk 0:02:52]} 3. e5 {[%clk 0:03:01]}  Bf5 {[%clk 0:02:51]} 4. h4 {[%clk 0:03:02]}  h5 {[%clk 0:02:51]} 5. Bd3 {[%clk 0:03:02]}  Bxd3 {[%clk 0:02:50]} 6. Qxd3 {[%clk 0:03:03]}  Qa5+ {[%clk 0:02:50]} 7. b4 {[%clk 0:03:04]}  Qxb4+ {[%clk 0:02:48]} 8. Nd2 {[%clk 0:03:04]}  e6 {[%clk 0:02:48]} 9. Rb1 {[%clk 0:03:04]}  Qe7 {[%clk 0:02:48]} 10. c4 {[%clk 0:03:04]}  a6 {[%clk 0:02:32]} 11. Ne2 {[%clk 0:02:58]}  Nh6 {[%clk 0:02:29]} 12. c5 {[%clk 0:02:43]}  Qc7 {[%clk 0:02:23]} 13. Ng3 {[%clk 0:02:25]}  g6 {[%clk 0:02:19]} 14. Nf3 {[%clk 0:02:25]}  Nd7 {[%clk 0:02:16]} 15. O-O {[%clk 0:02:25]}  Be7 {[%clk 0:02:06]} 16. Bd2 {[%clk 0:02:14]}  a5 {[%clk 0:01:54]} 17. Rb2 {[%clk 0:01:54]}  Ra7 {[%clk 0:01:35]} 18. Rfb1 {[%clk 0:01:52]}  Nf5 {[%clk 0:01:29]} 19. Nxf5 {[%clk 0:01:42]}  gxf5 {[%clk 0:01:27]} 20. a4 {[%clk 0:01:38]}  Bd8 {[%clk 0:01:18]} 21. Qe2 {[%clk 0:01:32]}  Nf8 {[%clk 0:01:16]} 22. g3 {[%clk 0:01:30]}  Ng6 {[%clk 0:01:13]} 23. Bg5 {[%clk 0:01:21]}  Bxg5 {[%clk 0:00:48]} 24. Nxg5 {[%clk 0:01:22]}  f4 {[%clk 0:00:46]} 25. Kh2 {[%clk 0:01:12]}  Kd8 {[%clk 0:00:13]} 26. Qd3 {[%clk 0:01:08]}  Qe7 {[%clk 0:00:07]} 27. Rb6 {[%clk 0:00:54]}  f5 {[%clk 0:00:02]} 28. exf6 {[%clk 0:00:44]}  Qxf6 {[%clk 0:00:03]} 29. Rxb7 {[%clk 0:00:44]}  Rxb7 {[%clk 0:00:02]} 30. Rxb7 {[%clk 0:00:45]}  fxg3+ {[%clk 0:00:03]} 31. Qxg3 {[%clk 0:00:45]}  e5 {[%clk 0:00:01]} 32. Nf7+ {[%clk 0:00:31]}  Kc8 {[%clk 0:00:01]} 33. Nd6+ {[%clk 0:00:31]}  Kd8 {[%clk 0:00:01]} 34. Nf7+ {[%clk 0:00:15]}  Kc8 {[%clk 0:00:01]} 35. Nxh8 {[%clk 0:00:16]}  Kd8 {[%clk 0:00:02]} 36. Nxg6 {[%clk 0:00:16]} 1-0


[Site "https://www.chess.com"]

[Event "Titled Tuesday Blitz May 17 Late 2022"]
[White "Moroni, Luca Jr"]
[Black "Solon, Nathan"]
[WhiteFideId "865834"]
[BlackFideId "2017229"]
[WhiteElo "2573"]
[BlackElo "2561"]
[Result "0-1"]
[Round "04"]
[TimeControl "180+1"]
[Date "2022.05.17"]
[WhiteClock "0:00:03"]
[BlackClock "0:00:26"]

1. d4 {[%clk 0:03:00]}  d5 {[%clk 0:02:59]} 2. Bf4 {[%clk 0:02:59]}  Nf6 {[%clk 0:02:59]} 3. e3 {[%clk 0:03:00]}  e6 {[%clk 0:02:59]} 4. Nf3 {[%clk 0:02:59]}  Bd6 {[%clk 0:02:59]} 5. Nbd2 {[%clk 0:03:00]}  O-O {[%clk 0:02:58]} 6. Bd3 {[%clk 0:02:59]}  c5 {[%clk 0:02:58]} 7. dxc5 {[%clk 0:02:56]}  Bxc5 {[%clk 0:02:58]} 8. O-O {[%clk 0:02:54]}  Nc6 {[%clk 0:02:58]} 9. e4 {[%clk 0:02:54]}  dxe4 {[%clk 0:02:57]} 10. Nxe4 {[%clk 0:02:55]}  Nxe4 {[%clk 0:02:57]} 11. Bxe4 {[%clk 0:02:55]}  f6 {[%clk 0:02:56]} 12. Qe2 {[%clk 0:02:48]}  Qb6 {[%clk 0:02:44]} 13. c3 {[%clk 0:02:46]}  e5 {[%clk 0:02:43]} 14. Bg3 {[%clk 0:02:35]}  Be6 {[%clk 0:02:41]} 15. b4 {[%clk 0:02:24]}  Be7 {[%clk 0:02:41]} 16. a4 {[%clk 0:02:18]}  a5 {[%clk 0:02:22]} 17. b5 {[%clk 0:02:09]}  Nd8 {[%clk 0:02:21]} 18. Qd3 {[%clk 0:02:03]}  f5 {[%clk 0:02:14]} 19. Bd5 {[%clk 0:01:29]}  e4 {[%clk 0:02:14]} 20. Qc4 {[%clk 0:01:29]}  Bxd5 {[%clk 0:01:26]} 21. Qxd5+ {[%clk 0:01:28]}  Qe6 {[%clk 0:01:27]} 22. Qd1 {[%clk 0:00:57]}  exf3 {[%clk 0:01:23]} 23. Re1 {[%clk 0:00:57]}  Qf7 {[%clk 0:01:19]} 24. Qxf3 {[%clk 0:00:55]}  Rc8 {[%clk 0:01:08]} 25. b6 {[%clk 0:00:48]}  Nc6 {[%clk 0:01:05]} 26. Rad1 {[%clk 0:00:45]}  f4 {[%clk 0:01:05]} 27. Rd7 {[%clk 0:00:35]}  fxg3 {[%clk 0:01:01]} 28. Qxg3 {[%clk 0:00:35]}  Rcd8 {[%clk 0:00:48]} 29. Rxb7 {[%clk 0:00:33]}  Rd2 {[%clk 0:00:48]} 30. Rf1 {[%clk 0:00:25]}  Qd5 {[%clk 0:00:42]} 31. h3 {[%clk 0:00:19]}  Rd1 {[%clk 0:00:40]} 32. Qe3 {[%clk 0:00:04]}  Bc5 {[%clk 0:00:32]} 33. Qg3 {[%clk 0:00:03]}  Rxf1+ {[%clk 0:00:31]} 34. Kh2 {[%clk 0:00:03]}  Bd6 {[%clk 0:00:27]} 35. f4 {[%clk 0:00:03]}  Bxf4 {[%clk 0:00:26]} 0-1


[Site "https://www.chess.com"]

[Event "Titled Tuesday Blitz May 17 Late 2022"]
[White "Oparin, Grigoriy"]
[Black "Stoleriu, George"]
[WhiteFideId "24125890"]
[BlackFideId "1227505"]
[WhiteElo "2665"]
[BlackElo "2194"]
[Result "0-1"]
[Round "04"]
[TimeControl "180+1"]
[Date "2022.05.17"]
[WhiteClock "0:00:02"]
[BlackClock "0:00:17"]

1. f4 {[%clk 0:03:00]}  d5 {[%clk 0:02:57]} 2. g3 {[%clk 0:03:01]}  Nf6 {[%clk 0:02:57]} 3. Bg2 {[%clk 0:03:01]}  g6 {[%clk 0:02:58]} 4. Nf3 {[%clk 0:03:01]}  Bg7 {[%clk 0:02:59]} 5. d3 {[%clk 0:03:02]}  O-O {[%clk 0:02:58]} 6. O-O {[%clk 0:03:03]}  c5 {[%clk 0:02:58]} 7. c3 {[%clk 0:03:03]}  Nc6 {[%clk 0:02:59]} 8. Qe1 {[%clk 0:03:01]}  b6 {[%clk 0:03:00]} 9. e4 {[%clk 0:02:59]}  Ba6 {[%clk 0:03:00]} 10. e5 {[%clk 0:02:57]}  Nd7 {[%clk 0:02:57]} 11. Qe2 {[%clk 0:02:55]}  e6 {[%clk 0:02:55]} 12. a4 {[%clk 0:02:47]}  Na5 {[%clk 0:02:48]} 13. Qc2 {[%clk 0:02:34]}  Qe7 {[%clk 0:02:37]} 14. Na3 {[%clk 0:02:34]}  Bb7 {[%clk 0:02:24]} 15. Nb5 {[%clk 0:02:31]}  Bc6 {[%clk 0:02:24]} 16. Bd2 {[%clk 0:02:23]}  a6 {[%clk 0:02:23]} 17. Nd6 {[%clk 0:02:23]}  Nb7 {[%clk 0:02:23]} 18. Nxb7 {[%clk 0:02:23]}  Bxb7 {[%clk 0:02:24]} 19. Rae1 {[%clk 0:02:19]}  b5 {[%clk 0:02:24]} 20. d4 {[%clk 0:02:17]}  cxd4 {[%clk 0:02:19]} 21. Nxd4 {[%clk 0:02:16]}  Nc5 {[%clk 0:02:05]} 22. g4 {[%clk 0:02:14]}  f6 {[%clk 0:01:44]} 23. exf6 {[%clk 0:02:07]}  Bxf6 {[%clk 0:01:45]} 24. Nf3 {[%clk 0:01:13]}  Ne4 {[%clk 0:01:22]} 25. Be3 {[%clk 0:01:13]}  Rac8 {[%clk 0:01:19]} 26. axb5 {[%clk 0:01:09]}  axb5 {[%clk 0:01:20]} 27. Qb3 {[%clk 0:01:00]}  Nc5 {[%clk 0:01:03]} 28. Qd1 {[%clk 0:00:55]}  Ne4 {[%clk 0:00:52]} 29. Bd4 {[%clk 0:00:54]}  b4 {[%clk 0:00:51]} 30. cxb4 {[%clk 0:00:36]}  Qxb4 {[%clk 0:00:52]} 31. f5 {[%clk 0:00:35]}  gxf5 {[%clk 0:00:42]} 32. gxf5 {[%clk 0:00:36]}  Bxd4+ {[%clk 0:00:43]} 33. Nxd4 {[%clk 0:00:35]}  Kh8 {[%clk 0:00:21]} 34. Nxe6 {[%clk 0:00:34]}  Rg8 {[%clk 0:00:21]} 35. Re2 {[%clk 0:00:22]}  Ba6 {[%clk 0:00:20]} 36. Kh1 {[%clk 0:00:15]}  Bxe2 {[%clk 0:00:20]} 37. Qxe2 {[%clk 0:00:16]}  Qc4 {[%clk 0:00:21]} 38. Qe1 {[%clk 0:00:08]}  Qc2 {[%clk 0:00:19]} 39. Bf3 {[%clk 0:00:08]}  Qxb2 {[%clk 0:00:16]} 40. f6 {[%clk 0:00:06]}  Rc2 {[%clk 0:00:16]} 41. Qh4 {[%clk 0:00:02]}  Nf2+ {[%clk 0:00:16]} 42. Rxf2 {[%clk 0:00:02]}  Rxf2 {[%clk 0:00:17]} 0-1


[Site "https://www.chess.com"]

[Event "Titled Tuesday Blitz May 17 Late 2022"]
[White "Pichot, Alan"]
[Black "Wagner, Dennis"]
[WhiteFideId "110973"]
[BlackFideId "24650684"]
[WhiteElo "2579"]
[BlackElo "2355"]
[Result "1/2-1/2"]
[Round "04"]
[TimeControl "180+1"]
[Date "2022.05.17"]
[WhiteClock "0:00:14"]
[BlackClock "0:00:10"]

1. e4 {[%clk 0:02:56]}  e5 {[%clk 0:03:00]} 2. Nf3 {[%clk 0:02:55]}  Nc6 {[%clk 0:03:00]} 3. Bb5 {[%clk 0:02:55]}  a6 {[%clk 0:03:00]} 4. Ba4 {[%clk 0:02:56]}  Nf6 {[%clk 0:03:01]} 5. O-O {[%clk 0:02:56]}  Be7 {[%clk 0:03:00]} 6. Re1 {[%clk 0:02:57]}  b5 {[%clk 0:03:01]} 7. Bb3 {[%clk 0:02:57]}  O-O {[%clk 0:03:02]} 8. a4 {[%clk 0:02:57]}  Bb7 {[%clk 0:02:58]} 9. d3 {[%clk 0:02:56]}  d6 {[%clk 0:02:56]} 10. Nbd2 {[%clk 0:02:55]}  Nd7 {[%clk 0:02:54]} 11. c3 {[%clk 0:02:54]}  Nc5 {[%clk 0:02:55]} 12. axb5 {[%clk 0:02:53]}  axb5 {[%clk 0:02:55]} 13. Rxa8 {[%clk 0:02:54]}  Qxa8 {[%clk 0:02:55]} 14. Bc2 {[%clk 0:02:55]}  b4 {[%clk 0:02:56]} 15. Nc4 {[%clk 0:02:55]}  bxc3 {[%clk 0:02:52]} 16. bxc3 {[%clk 0:02:56]}  Qa1 {[%clk 0:02:51]} 17. Be3 {[%clk 0:02:54]}  Qxd1 {[%clk 0:02:44]} 18. Rxd1 {[%clk 0:02:54]}  Nd7 {[%clk 0:02:30]} 19. Rb1 {[%clk 0:02:49]}  Rb8 {[%clk 0:02:29]} 20. Ba4 {[%clk 0:02:46]}  Ba8 {[%clk 0:02:25]} 21. Ra1 {[%clk 0:02:43]}  h6 {[%clk 0:02:13]} 22. h3 {[%clk 0:02:41]}  Bb7 {[%clk 0:02:06]} 23. Bb5 {[%clk 0:02:34]}  Ra8 {[%clk 0:02:02]} 24. Rb1 {[%clk 0:02:33]}  Nf6 {[%clk 0:01:51]} 25. Nfd2 {[%clk 0:02:27]}  Bf8 {[%clk 0:01:45]} 26. f3 {[%clk 0:02:22]}  g6 {[%clk 0:01:45]} 27. g4 {[%clk 0:01:51]}  Kg7 {[%clk 0:01:44]} 28. h4 {[%clk 0:01:51]}  Be7 {[%clk 0:01:44]} 29. Nf1 {[%clk 0:01:42]}  Nd7 {[%clk 0:01:42]} 30. Bf2 {[%clk 0:01:42]}  Nf8 {[%clk 0:01:36]} 31. Nfe3 {[%clk 0:01:41]}  Ne6 {[%clk 0:01:35]} 32. Nd5 {[%clk 0:01:41]}  Bd8 {[%clk 0:01:35]} 33. Nce3 {[%clk 0:01:22]}  Ra3 {[%clk 0:01:16]} 34. Nc2 {[%clk 0:01:18]}  Ra5 {[%clk 0:01:05]} 35. Bc4 {[%clk 0:01:11]}  Ba6 {[%clk 0:01:00]} 36. Ncb4 {[%clk 0:01:00]}  Nxb4 {[%clk 0:00:56]} 37. cxb4 {[%clk 0:01:01]}  Ra3 {[%clk 0:00:56]} 38. b5 {[%clk 0:00:49]}  Bb7 {[%clk 0:00:57]} 39. Kg2 {[%clk 0:00:45]}  Bxd5 {[%clk 0:00:57]} 40. exd5 {[%clk 0:00:38]}  Nf4+ {[%clk 0:00:57]} 41. Kf1 {[%clk 0:00:39]}  Nxd3 {[%clk 0:00:54]} 42. Be3 {[%clk 0:00:39]}  Bxh4 {[%clk 0:00:51]} 43. b6 {[%clk 0:00:37]}  cxb6 {[%clk 0:00:50]} 44. Rxb6 {[%clk 0:00:37]}  Nf4 {[%clk 0:00:48]} 45. Bb3 {[%clk 0:00:32]}  Nxd5 {[%clk 0:00:45]} 46. Bxd5 {[%clk 0:00:31]}  Rxe3 {[%clk 0:00:46]} 47. Rb7 {[%clk 0:00:32]}  Kf6 {[%clk 0:00:42]} 48. Rxf7+ {[%clk 0:00:30]}  Kg5 {[%clk 0:00:42]} 49. Be4 {[%clk 0:00:29]}  Bg3 {[%clk 0:00:20]} 50. Rg7 {[%clk 0:00:25]}  Re1+ {[%clk 0:00:18]} 51. Kg2 {[%clk 0:00:25]}  Kh4 {[%clk 0:00:19]} 52. Rxg6 {[%clk 0:00:23]}  Bf4 {[%clk 0:00:12]} 53. Rxd6 {[%clk 0:00:23]}  Re2+ {[%clk 0:00:12]} 54. Kf1 {[%clk 0:00:23]}  Rb2 {[%clk 0:00:13]} 55. Ke1 {[%clk 0:00:21]}  Kg3 {[%clk 0:00:13]} 56. Rc6 {[%clk 0:00:19]}  Rh2 {[%clk 0:00:12]} 57. Kf1 {[%clk 0:00:17]}  Rd2 {[%clk 0:00:10]} 58. Ke1 {[%clk 0:00:17]}  Rb2 {[%clk 0:00:09]} 59. Kd1 {[%clk 0:00:15]}  Kg2 {[%clk 0:00:10]} 60. Rc2+ {[%clk 0:00:14]}  Rxc2 {[%clk 0:00:10]} 61. Kxc2 {[%clk 0:00:14]}  Kf2 {[%clk 0:00:11]} 62. Kd3 {[%clk 0:00:14]}  Kg3 {[%clk 0:00:10]} 1/2-1/2


[Site "https://www.chess.com"]

[Event "Titled Tuesday Blitz May 17 Late 2022"]
[White "Puranik, Abhimanyu"]
[Black "Hansen, Eric"]
[WhiteFideId "5061245"]
[BlackFideId "2606771"]
[WhiteElo "2520"]
[BlackElo "2568"]
[Result "0-1"]
[Round "04"]
[TimeControl "180+1"]
[Date "2022.05.17"]
[WhiteClock "0:00:03"]
[BlackClock "0:00:06"]

1. e4 {[%clk 0:01:58]}  e5 {[%clk 0:02:58]} 2. Nf3 {[%clk 0:01:57]}  Nc6 {[%clk 0:02:58]} 3. Bc4 {[%clk 0:01:58]}  Bc5 {[%clk 0:02:57]} 4. c3 {[%clk 0:01:57]}  Nf6 {[%clk 0:02:56]} 5. d4 {[%clk 0:01:58]}  exd4 {[%clk 0:02:56]} 6. e5 {[%clk 0:01:58]}  d5 {[%clk 0:02:56]} 7. Bb5 {[%clk 0:01:58]}  Ne4 {[%clk 0:02:57]} 8. cxd4 {[%clk 0:01:59]}  Bb6 {[%clk 0:02:55]} 9. Nc3 {[%clk 0:01:56]}  O-O {[%clk 0:02:53]} 10. Be3 {[%clk 0:01:54]}  Ba5 {[%clk 0:02:48]} 11. Rc1 {[%clk 0:01:52]}  Ne7 {[%clk 0:02:47]} 12. O-O {[%clk 0:01:51]}  c6 {[%clk 0:02:47]} 13. Bd3 {[%clk 0:01:51]}  f5 {[%clk 0:02:48]} 14. exf6 {[%clk 0:01:49]}  Nxf6 {[%clk 0:02:48]} 15. Ne2 {[%clk 0:01:49]}  Bf5 {[%clk 0:02:41]} 16. Ng3 {[%clk 0:01:48]}  Bxd3 {[%clk 0:02:41]} 17. Qxd3 {[%clk 0:01:49]}  Bc7 {[%clk 0:02:40]} 18. Rfe1 {[%clk 0:01:48]}  Ng6 {[%clk 0:02:36]} 19. Bg5 {[%clk 0:01:43]}  Bf4 {[%clk 0:02:34]} 20. Rc2 {[%clk 0:01:35]}  Bxg5 {[%clk 0:02:27]} 21. Nxg5 {[%clk 0:01:36]}  Qd7 {[%clk 0:02:27]} 22. h3 {[%clk 0:01:19]}  Rfe8 {[%clk 0:02:19]} 23. Rcc1 {[%clk 0:01:18]}  Qd6 {[%clk 0:01:57]} 24. Nf5 {[%clk 0:01:14]}  Qf4 {[%clk 0:01:58]} 25. h4 {[%clk 0:00:55]}  Nxh4 {[%clk 0:01:13]} 26. Nxh4 {[%clk 0:00:55]}  Qxh4 {[%clk 0:01:12]} 27. Ne6 {[%clk 0:00:53]}  Ng4 {[%clk 0:01:08]} 28. Qh3 {[%clk 0:00:47]}  Qxh3 {[%clk 0:01:05]} 29. gxh3 {[%clk 0:00:47]}  Nf6 {[%clk 0:01:03]} 30. Nc5 {[%clk 0:00:42]}  Rab8 {[%clk 0:00:53]} 31. Rxe8+ {[%clk 0:00:41]}  Nxe8 {[%clk 0:00:54]} 32. Re1 {[%clk 0:00:34]}  Kf7 {[%clk 0:00:54]} 33. Nd7 {[%clk 0:00:34]}  Rd8 {[%clk 0:00:54]} 34. Ne5+ {[%clk 0:00:30]}  Kf8 {[%clk 0:00:51]} 35. Re3 {[%clk 0:00:28]}  Nd6 {[%clk 0:00:51]} 36. Kg2 {[%clk 0:00:26]}  g6 {[%clk 0:00:48]} 37. Rf3+ {[%clk 0:00:24]}  Kg7 {[%clk 0:00:48]} 38. h4 {[%clk 0:00:23]}  Nf5 {[%clk 0:00:48]} 39. Kh3 {[%clk 0:00:19]}  h5 {[%clk 0:00:44]} 40. Rb3 {[%clk 0:00:18]}  b6 {[%clk 0:00:26]} 41. Nxc6 {[%clk 0:00:17]}  Re8 {[%clk 0:00:24]} 42. Nxa7 {[%clk 0:00:11]}  Re4 {[%clk 0:00:20]} 43. Rxb6 {[%clk 0:00:07]}  Rxh4+ {[%clk 0:00:20]} 44. Kg2 {[%clk 0:00:07]}  Rg4+ {[%clk 0:00:21]} 45. Kh2 {[%clk 0:00:06]}  Nxd4 {[%clk 0:00:21]} 46. Nc6 {[%clk 0:00:03]}  Nf3+ {[%clk 0:00:21]} 47. Kh3 {[%clk 0:00:03]}  Ng5+ {[%clk 0:00:15]} 48. Kh2 {[%clk 0:00:03]}  Nf3+ {[%clk 0:00:15]} 49. Kh3 {[%clk 0:00:03]}  Rg1 {[%clk 0:00:15]} 50. Rb3 {[%clk 0:00:03]}  Ng5+ {[%clk 0:00:10]} 51. Kh2 {[%clk 0:00:03]}  Rd1 {[%clk 0:00:10]} 52. Rb7+ {[%clk 0:00:03]}  Kf6 {[%clk 0:00:10]} 53. b4 {[%clk 0:00:02]}  h4 {[%clk 0:00:09]} 54. b5 {[%clk 0:00:03]}  Rd2 {[%clk 0:00:06]} 55. b6 {[%clk 0:00:03]}  Rxf2+ {[%clk 0:00:06]} 56. Kh1 {[%clk 0:00:03]}  Nf3 {[%clk 0:00:06]} 0-1


[Site "https://www.chess.com"]

[Event "Titled Tuesday Blitz May 17 Late 2022"]
[White "Santos Ruiz, Miguel"]
[Black "Kanyamarala, Tarun"]
[WhiteFideId "22291482"]
[BlackFideId "45004714"]
[WhiteElo "2486"]
[BlackElo "2219"]
[Result "1-0"]
[Round "04"]
[TimeControl "180+1"]
[Date "2022.05.17"]
[WhiteClock "0:01:41"]
[BlackClock "0:00:32"]

1. c4 {[%clk 0:03:00]}  e6 {[%clk 0:01:29]} 2. Nc3 {[%clk 0:02:59]}  d5 {[%clk 0:01:28]} 3. d4 {[%clk 0:02:59]}  Be7 {[%clk 0:01:29]} 4. cxd5 {[%clk 0:02:59]}  exd5 {[%clk 0:01:29]} 5. Bf4 {[%clk 0:02:58]}  c6 {[%clk 0:01:27]} 6. e3 {[%clk 0:02:58]}  Nf6 {[%clk 0:01:26]} 7. Bd3 {[%clk 0:02:58]}  O-O {[%clk 0:01:24]} 8. h3 {[%clk 0:02:57]}  a5 {[%clk 0:01:24]} 9. Nf3 {[%clk 0:02:54]}  Na6 {[%clk 0:01:23]} 10. Ne5 {[%clk 0:02:50]}  Nb4 {[%clk 0:01:20]} 11. Bb1 {[%clk 0:02:49]}  h6 {[%clk 0:01:20]} 12. a3 {[%clk 0:02:46]}  Na6 {[%clk 0:01:19]} 13. Bc2 {[%clk 0:02:41]}  Nc7 {[%clk 0:01:14]} 14. g4 {[%clk 0:02:40]}  Ne6 {[%clk 0:01:13]} 15. Bg3 {[%clk 0:02:37]}  c5 {[%clk 0:01:14]} 16. h4 {[%clk 0:02:35]}  cxd4 {[%clk 0:01:12]} 17. exd4 {[%clk 0:02:35]}  Qb6 {[%clk 0:01:07]} 18. g5 {[%clk 0:02:30]}  hxg5 {[%clk 0:01:04]} 19. hxg5 {[%clk 0:02:31]}  Nxg5 {[%clk 0:01:04]} 20. Bf4 {[%clk 0:02:08]}  Nfe4 {[%clk 0:00:34]} 21. Nxd5 {[%clk 0:02:00]}  Qe6 {[%clk 0:00:32]} 22. Qh5 {[%clk 0:01:41]} 1-0


[Site "https://www.chess.com"]

[Event "Titled Tuesday Blitz May 17 Late 2022"]
[White "Souleidis, Georgios"]
[Black "Sjugirov, Sanan"]
[WhiteFideId "4206827"]
[BlackFideId "4189302"]
[WhiteElo "2401"]
[BlackElo "2602"]
[Result "0-1"]
[Round "04"]
[TimeControl "180+1"]
[Date "2022.05.17"]
[WhiteClock "0:00:02"]
[BlackClock "0:00:56"]

1. e4 {[%clk 0:02:59]}  c5 {[%clk 0:02:59]} 2. Be2 {[%clk 0:02:59]}  Nc6 {[%clk 0:02:56]} 3. d3 {[%clk 0:02:59]}  e6 {[%clk 0:02:56]} 4. f4 {[%clk 0:03:00]}  d5 {[%clk 0:02:57]} 5. Nf3 {[%clk 0:03:00]}  Bd6 {[%clk 0:02:57]} 6. O-O {[%clk 0:03:00]}  Nge7 {[%clk 0:02:58]} 7. c3 {[%clk 0:03:00]}  f6 {[%clk 0:02:53]} 8. g3 {[%clk 0:03:00]}  O-O {[%clk 0:02:52]} 9. a3 {[%clk 0:03:01]}  b5 {[%clk 0:02:40]} 10. b4 {[%clk 0:02:52]}  a5 {[%clk 0:02:38]} 11. bxc5 {[%clk 0:02:49]}  Bxc5+ {[%clk 0:02:37]} 12. d4 {[%clk 0:02:39]}  Bb6 {[%clk 0:02:28]} 13. e5 {[%clk 0:02:30]}  Ba6 {[%clk 0:02:23]} 14. exf6 {[%clk 0:02:27]}  Rxf6 {[%clk 0:02:23]} 15. Be3 {[%clk 0:02:01]}  Nf5 {[%clk 0:02:22]} 16. Bf2 {[%clk 0:02:01]}  Nd6 {[%clk 0:02:23]} 17. Nbd2 {[%clk 0:01:53]}  Qc8 {[%clk 0:02:24]} 18. Ne5 {[%clk 0:01:46]}  Rf8 {[%clk 0:02:19]} 19. Rc1 {[%clk 0:01:41]}  Qc7 {[%clk 0:02:13]} 20. Bd3 {[%clk 0:01:41]}  Nxe5 {[%clk 0:02:04]} 21. fxe5 {[%clk 0:01:33]}  Nc4 {[%clk 0:02:04]} 22. Nxc4 {[%clk 0:01:24]}  dxc4 {[%clk 0:02:05]} 23. Be4 {[%clk 0:01:10]}  Bb7 {[%clk 0:02:05]} 24. Qg4 {[%clk 0:01:09]}  Rae8 {[%clk 0:01:55]} 25. Rb1 {[%clk 0:01:04]}  Bc6 {[%clk 0:01:50]} 26. Be3 {[%clk 0:00:55]}  Rxf1+ {[%clk 0:01:44]} 27. Rxf1 {[%clk 0:00:55]}  Bxe4 {[%clk 0:01:36]} 28. Qxe4 {[%clk 0:00:55]}  Qd7 {[%clk 0:01:37]} 29. h4 {[%clk 0:00:44]}  Bd8 {[%clk 0:01:36]} 30. Kh2 {[%clk 0:00:38]}  Be7 {[%clk 0:01:35]} 31. Bc1 {[%clk 0:00:34]}  Rf8 {[%clk 0:01:34]} 32. Rxf8+ {[%clk 0:00:32]}  Bxf8 {[%clk 0:01:35]} 33. Qa8 {[%clk 0:00:30]}  b4 {[%clk 0:01:33]} 34. Qxa5 {[%clk 0:00:18]}  b3 {[%clk 0:01:32]} 35. Qb6 {[%clk 0:00:17]}  Qd5 {[%clk 0:01:31]} 36. Qb8 {[%clk 0:00:16]}  h6 {[%clk 0:01:28]} 37. a4 {[%clk 0:00:16]}  Kf7 {[%clk 0:01:26]} 38. a5 {[%clk 0:00:16]}  Qxa5 {[%clk 0:01:24]} 39. Qb7+ {[%clk 0:00:15]}  Kg8 {[%clk 0:01:24]} 40. Qc8 {[%clk 0:00:15]}  Kf7 {[%clk 0:01:14]} 41. Qxc4 {[%clk 0:00:11]}  Qa2+ {[%clk 0:01:14]} 42. Kh3 {[%clk 0:00:11]}  Qc2 {[%clk 0:01:00]} 43. Qc7+ {[%clk 0:00:06]}  Kg8 {[%clk 0:01:00]} 44. Bf4 {[%clk 0:00:05]}  b2 {[%clk 0:00:57]} 45. Qc8 {[%clk 0:00:03]}  Qf5+ {[%clk 0:00:57]} 46. g4 {[%clk 0:00:02]}  Qxf4 {[%clk 0:00:55]} 47. Qxe6+ {[%clk 0:00:03]}  Qf7 {[%clk 0:00:56]} 48. Qb6 {[%clk 0:00:02]}  Qf3+ {[%clk 0:00:56]} 49. Kh2 {[%clk 0:00:02]}  Qf2+ {[%clk 0:00:56]} 50. Kh3 {[%clk 0:00:03]}  Qf1+ {[%clk 0:00:56]} 51. Kg3 {[%clk 0:00:02]}  b1=Q {[%clk 0:00:56]} 52. Qxb1 {[%clk 0:00:02]}  Qxb1 {[%clk 0:00:56]} 0-1


[Site "https://www.chess.com"]